[Event "Titled Tuesday Blitz February 01 A 2022"]
[White "Mladenovic, Stefan"]
[Black "Molina, Roberto Junio Brito"]
[WhiteFideId "942227"]
[BlackFideId "2109450"]
[WhiteElo "2592"]
[BlackElo "2760"]
[Result "1-0"]
[Round "04"]
[TimeControl "180+1"]
[Date "2022.02.01"]
[WhiteClock "0:00:09"]
[BlackClock "0:00:01"]

1. d4 {[%clk 0:03:00]}  d5 {[%clk 0:02:59]} 2. c4 {[%clk 0:02:59]}  c6 {[%clk 0:03:00]} 3. Nf3 {[%clk 0:02:57]}  Nf6 {[%clk 0:03:00]} 4. e3 {[%clk 0:02:57]}  Bf5 {[%clk 0:02:51]} 5. Nc3 {[%clk 0:02:57]}  e6 {[%clk 0:02:50]} 6. Nh4 {[%clk 0:02:55]}  Be4 {[%clk 0:02:47]} 7. f3 {[%clk 0:02:55]}  Bg6 {[%clk 0:02:47]} 8. Qb3 {[%clk 0:02:55]}  Qb6 {[%clk 0:02:46]} 9. g3 {[%clk 0:02:52]}  Nbd7 {[%clk 0:02:46]} 10. Bd2 {[%clk 0:02:51]}  Be7 {[%clk 0:02:44]} 11. Nxg6 {[%clk 0:02:51]}  hxg6 {[%clk 0:02:43]} 12. Bg2 {[%clk 0:02:52]}  Rc8 {[%clk 0:02:30]} 13. O-O-O {[%clk 0:02:50]}  Qxb3 {[%clk 0:02:25]} 14. axb3 {[%clk 0:02:49]}  a6 {[%clk 0:02:25]} 15. e4 {[%clk 0:02:48]}  dxe4 {[%clk 0:02:22]} 16. fxe4 {[%clk 0:02:49]}  e5 {[%clk 0:02:22]} 17. d5 {[%clk 0:02:41]}  Nc5 {[%clk 0:02:19]} 18. Kc2 {[%clk 0:02:31]}  O-O {[%clk 0:02:07]} 19. Bf3 {[%clk 0:02:23]}  Rfd8 {[%clk 0:02:05]} 20. Be3 {[%clk 0:02:20]}  Bf8 {[%clk 0:01:55]} 21. Rd2 {[%clk 0:02:16]}  Ncd7 {[%clk 0:01:47]} 22. Rhd1 {[%clk 0:02:13]}  c5 {[%clk 0:01:40]} 23. Bg5 {[%clk 0:02:06]}  Bd6 {[%clk 0:01:40]} 24. h4 {[%clk 0:02:01]}  Re8 {[%clk 0:01:38]} 25. Rh2 {[%clk 0:01:57]}  Nh7 {[%clk 0:01:35]} 26. Be3 {[%clk 0:01:55]}  Ndf8 {[%clk 0:01:27]} 27. h5 {[%clk 0:01:47]}  g5 {[%clk 0:01:23]} 28. Bg4 {[%clk 0:01:43]}  Rc7 {[%clk 0:01:22]} 29. Na4 {[%clk 0:01:34]}  Nf6 {[%clk 0:01:18]} 30. Bf3 {[%clk 0:01:33]}  Kh7 {[%clk 0:01:11]} 31. Bxg5 {[%clk 0:01:32]}  N8d7 {[%clk 0:01:09]} 32. Be3 {[%clk 0:01:30]}  b5 {[%clk 0:01:05]} 33. Nc3 {[%clk 0:01:28]}  Rb8 {[%clk 0:01:03]} 34. g4 {[%clk 0:01:28]}  Rcb7 {[%clk 0:00:59]} 35. Rb1 {[%clk 0:01:26]}  Ne8 {[%clk 0:00:52]} 36. g5 {[%clk 0:01:24]}  Be7 {[%clk 0:00:43]} 37. Bg4 {[%clk 0:01:16]}  Nd6 {[%clk 0:00:40]} 38. cxb5 {[%clk 0:00:58]}  axb5 {[%clk 0:00:38]} 39. g6+ {[%clk 0:00:48]}  Kg8 {[%clk 0:00:38]} 40. gxf7+ {[%clk 0:00:47]}  Kxf7 {[%clk 0:00:39]} 41. Be6+ {[%clk 0:00:47]}  Ke8 {[%clk 0:00:39]} 42. Rg1 {[%clk 0:00:42]}  b4 {[%clk 0:00:36]} 43. Na4 {[%clk 0:00:37]}  c4 {[%clk 0:00:25]} 44. Rxg7 {[%clk 0:00:32]}  cxb3+ {[%clk 0:00:23]} 45. Kxb3 {[%clk 0:00:31]}  Nxe4 {[%clk 0:00:22]} 46. h6 {[%clk 0:00:23]}  Bf8 {[%clk 0:00:16]} 47. Rg8 {[%clk 0:00:15]}  Ke7 {[%clk 0:00:10]} 48. h7 {[%clk 0:00:15]}  Ndf6 {[%clk 0:00:03]} 49. h8=Q {[%clk 0:00:14]}  Nxg8 {[%clk 0:00:02]} 50. Qxg8 {[%clk 0:00:15]}  Kd6 {[%clk 0:00:02]} 51. Qg4 {[%clk 0:00:10]}  Be7 {[%clk 0:00:01]} 52. Qxe4 {[%clk 0:00:09]} 1-0


[Site "https://www.chess.com"]

[Event "Titled Tuesday Blitz February 01 A 2022"]
[White "Pranav, V"]
[Black "Nakamura, Hikaru"]
[WhiteFideId "25060783"]
[BlackFideId "2016192"]
[WhiteElo "2875"]
[BlackElo "3217"]
[Result "0-1"]
[Round "04"]
[TimeControl "180+1"]
[Date "2022.02.01"]
[WhiteClock "0:00:02"]
[BlackClock "0:00:47"]

1. e4 {[%clk 0:03:00]}  c6 {[%clk 0:02:59]} 2. d4 {[%clk 0:02:59]}  d5 {[%clk 0:02:59]} 3. e5 {[%clk 0:03:00]}  Bf5 {[%clk 0:02:59]} 4. Nf3 {[%clk 0:03:00]}  e6 {[%clk 0:02:58]} 5. Be2 {[%clk 0:03:00]}  h6 {[%clk 0:02:58]} 6. O-O {[%clk 0:02:56]}  Nd7 {[%clk 0:02:57]} 7. c3 {[%clk 0:02:56]}  Ne7 {[%clk 0:02:57]} 8. Na3 {[%clk 0:02:56]}  g5 {[%clk 0:02:53]} 9. Nc2 {[%clk 0:02:54]}  Bg6 {[%clk 0:02:52]} 10. Nfe1 {[%clk 0:02:38]}  c5 {[%clk 0:02:51]} 11. f4 {[%clk 0:02:34]}  gxf4 {[%clk 0:02:46]} 12. Bxf4 {[%clk 0:02:33]}  Qb6 {[%clk 0:02:42]} 13. Bd3 {[%clk 0:02:15]}  Bg7 {[%clk 0:02:33]} 14. Be3 {[%clk 0:01:57]}  cxd4 {[%clk 0:02:27]} 15. cxd4 {[%clk 0:01:52]}  Rc8 {[%clk 0:02:16]} 16. Bxg6 {[%clk 0:01:29]}  fxg6 {[%clk 0:02:11]} 17. Nd3 {[%clk 0:01:10]}  Nf5 {[%clk 0:02:10]} 18. Bf2 {[%clk 0:01:10]}  O-O {[%clk 0:02:08]} 19. Qd2 {[%clk 0:00:58]}  Kh7 {[%clk 0:02:02]} 20. b3 {[%clk 0:00:40]}  h5 {[%clk 0:01:52]} 21. Rae1 {[%clk 0:00:25]}  Bh6 {[%clk 0:01:47]} 22. Qd1 {[%clk 0:00:26]}  Rc3 {[%clk 0:01:08]} 23. Nc5 {[%clk 0:00:23]}  Nxc5 {[%clk 0:01:08]} 24. dxc5 {[%clk 0:00:23]}  Qa6 {[%clk 0:01:09]} 25. Nb4 {[%clk 0:00:11]}  Qb5 {[%clk 0:01:05]} 26. Nc2 {[%clk 0:00:08]}  Qa6 {[%clk 0:00:55]} 27. Re2 {[%clk 0:00:04]}  Rc8 {[%clk 0:00:48]} 28. Qb1 {[%clk 0:00:02]}  Qxe2 {[%clk 0:00:47]} 0-1


[Site "https://www.chess.com"]

[Event "Titled Tuesday Blitz February 01 A 2022"]
[White "Sadhwani, Raunak"]
[Black "Lovkov, Roman"]
[WhiteFideId "35093487"]
[BlackFideId "4157389"]
[WhiteElo "2986"]
[BlackElo "2670"]
[Result "1-0"]
[Round "04"]
[TimeControl "180+1"]
[Date "2022.02.01"]
[WhiteClock "0:00:26"]
[BlackClock "0:00:02"]

1. d4 {[%clk 0:03:00]}  d5 {[%clk 0:02:58]} 2. Nf3 {[%clk 0:03:01]}  e6 {[%clk 0:02:58]} 3. Bf4 {[%clk 0:03:01]}  c5 {[%clk 0:02:58]} 4. e3 {[%clk 0:03:02]}  Nc6 {[%clk 0:02:58]} 5. c3 {[%clk 0:03:01]}  Bd6 {[%clk 0:02:58]} 6. Bg3 {[%clk 0:02:59]}  Nf6 {[%clk 0:02:58]} 7. Nbd2 {[%clk 0:02:58]}  O-O {[%clk 0:02:58]} 8. Bd3 {[%clk 0:02:57]}  b6 {[%clk 0:02:58]} 9. e4 {[%clk 0:02:57]}  Be7 {[%clk 0:02:53]} 10. e5 {[%clk 0:02:58]}  Nh5 {[%clk 0:02:47]} 11. Ng5 {[%clk 0:02:57]}  Bxg5 {[%clk 0:02:43]} 12. Qxh5 {[%clk 0:02:58]}  g6 {[%clk 0:02:43]} 13. Qe2 {[%clk 0:02:58]}  cxd4 {[%clk 0:02:41]} 14. h4 {[%clk 0:02:59]}  Bh6 {[%clk 0:02:15]} 15. h5 {[%clk 0:02:59]}  dxc3 {[%clk 0:02:15]} 16. bxc3 {[%clk 0:02:58]}  g5 {[%clk 0:01:36]} 17. Nf3 {[%clk 0:02:58]}  f5 {[%clk 0:01:35]} 18. exf6 {[%clk 0:02:59]}  Qxf6 {[%clk 0:01:35]} 19. O-O {[%clk 0:02:59]}  Bg7 {[%clk 0:01:09]} 20. Rad1 {[%clk 0:02:51]}  Bd7 {[%clk 0:00:56]} 21. c4 {[%clk 0:02:48]}  Rae8 {[%clk 0:00:48]} 22. Bb1 {[%clk 0:02:44]}  d4 {[%clk 0:00:31]} 23. Nd2 {[%clk 0:02:27]}  e5 {[%clk 0:00:29]} 24. Ne4 {[%clk 0:02:28]}  Qh6 {[%clk 0:00:29]} 25. c5 {[%clk 0:02:27]}  g4 {[%clk 0:00:28]} 26. Rc1 {[%clk 0:02:08]}  Kh8 {[%clk 0:00:26]} 27. Nd6 {[%clk 0:01:49]}  Re7 {[%clk 0:00:23]} 28. Bh4 {[%clk 0:01:43]}  Re6 {[%clk 0:00:20]} 29. Bf5 {[%clk 0:01:39]}  Rxd6 {[%clk 0:00:20]} 30. cxd6 {[%clk 0:01:39]}  Rxf5 {[%clk 0:00:20]} 31. Qxg4 {[%clk 0:01:20]}  Rxh5 {[%clk 0:00:20]} 32. Qxd7 {[%clk 0:01:19]}  Rxh4 {[%clk 0:00:21]} 33. g3 {[%clk 0:01:09]}  Rh1+ {[%clk 0:00:20]} 34. Kg2 {[%clk 0:01:09]}  Rh2+ {[%clk 0:00:20]} 35. Kf3 {[%clk 0:01:03]}  e4+ {[%clk 0:00:20]} 36. Kxe4 {[%clk 0:01:00]}  Qg6+ {[%clk 0:00:18]} 37. Kd5 {[%clk 0:00:45]}  Nb4+ {[%clk 0:00:16]} 38. Kc4 {[%clk 0:00:46]}  Qd3+ {[%clk 0:00:16]} 39. Kxb4 {[%clk 0:00:41]}  Qd2+ {[%clk 0:00:11]} 40. Kb5 {[%clk 0:00:38]}  Rh5+ {[%clk 0:00:10]} 41. Kc6 {[%clk 0:00:36]}  Bf8 {[%clk 0:00:05]} 42. Qe8 {[%clk 0:00:31]}  Rf5 {[%clk 0:00:04]} 43. d7 {[%clk 0:00:28]}  Qa5 {[%clk 0:00:02]} 44. d8=Q {[%clk 0:00:26]} 1-0


[Site "https://www.chess.com"]

[Event "Titled Tuesday Blitz February 01 A 2022"]
[White "Santos Ruiz, Miguel"]
[Black "Sjugirov, Sanan"]
[WhiteFideId "22291482"]
[BlackFideId "4189302"]
[WhiteElo "2721"]
[BlackElo "2988"]
[Result "1-0"]
[Round "04"]
[TimeControl "180+1"]
[Date "2022.02.01"]
[WhiteClock "0:00:13"]
[BlackClock "0:00:03"]

1. e4 {[%clk 0:03:00]}  c5 {[%clk 0:02:58]} 2. Nf3 {[%clk 0:03:00]}  d6 {[%clk 0:02:58]} 3. d4 {[%clk 0:03:01]}  cxd4 {[%clk 0:02:59]} 4. Nxd4 {[%clk 0:03:02]}  Nf6 {[%clk 0:03:00]} 5. Nc3 {[%clk 0:03:02]}  a6 {[%clk 0:03:00]} 6. Be2 {[%clk 0:03:03]}  e5 {[%clk 0:03:01]} 7. Nb3 {[%clk 0:03:04]}  Be7 {[%clk 0:03:01]} 8. Be3 {[%clk 0:03:04]}  Be6 {[%clk 0:03:01]} 9. Nd5 {[%clk 0:03:04]}  Nbd7 {[%clk 0:02:52]} 10. Qd3 {[%clk 0:03:03]}  Bxd5 {[%clk 0:02:50]} 11. exd5 {[%clk 0:03:03]}  Rc8 {[%clk 0:02:46]} 12. c4 {[%clk 0:03:02]}  O-O {[%clk 0:02:45]} 13. O-O {[%clk 0:03:01]}  Ne8 {[%clk 0:02:43]} 14. a4 {[%clk 0:03:01]}  g6 {[%clk 0:02:26]} 15. a5 {[%clk 0:03:00]}  Bg5 {[%clk 0:02:18]} 16. Qc3 {[%clk 0:02:43]}  Ng7 {[%clk 0:02:05]} 17. Rfd1 {[%clk 0:02:17]}  Bxe3 {[%clk 0:02:03]} 18. Qxe3 {[%clk 0:02:17]}  f5 {[%clk 0:01:41]} 19. Nd2 {[%clk 0:02:15]}  e4 {[%clk 0:01:30]} 20. Qd4 {[%clk 0:02:06]}  Re8 {[%clk 0:01:16]} 21. b4 {[%clk 0:02:04]}  Qe7 {[%clk 0:01:12]} 22. Rac1 {[%clk 0:01:57]}  h5 {[%clk 0:01:08]} 23. Nb3 {[%clk 0:01:33]}  f4 {[%clk 0:01:07]} 24. c5 {[%clk 0:01:06]}  Nf5 {[%clk 0:01:07]} 25. Qb2 {[%clk 0:01:06]}  f3 {[%clk 0:00:53]} 26. gxf3 {[%clk 0:01:00]}  exf3 {[%clk 0:00:45]} 27. Bf1 {[%clk 0:00:54]}  Ne5 {[%clk 0:00:41]} 28. Qd2 {[%clk 0:00:35]}  Qh4 {[%clk 0:00:36]} 29. cxd6 {[%clk 0:00:20]}  Nxd6 {[%clk 0:00:36]} 30. Rxc8 {[%clk 0:00:20]}  Rxc8 {[%clk 0:00:35]} 31. Nd4 {[%clk 0:00:19]}  Rf8 {[%clk 0:00:20]} 32. h3 {[%clk 0:00:17]}  Qf6 {[%clk 0:00:16]} 33. Ne6 {[%clk 0:00:17]}  Rc8 {[%clk 0:00:14]} 34. Rc1 {[%clk 0:00:17]}  Rxc1 {[%clk 0:00:10]} 35. Qxc1 {[%clk 0:00:18]}  Nef7 {[%clk 0:00:08]} 36. Qe3 {[%clk 0:00:16]}  g5 {[%clk 0:00:08]} 37. Bd3 {[%clk 0:00:16]}  g4 {[%clk 0:00:08]} 38. Qa7 {[%clk 0:00:16]}  Qa1+ {[%clk 0:00:05]} 39. Bf1 {[%clk 0:00:12]}  gxh3 {[%clk 0:00:04]} 40. Qb8+ {[%clk 0:00:12]}  Kh7 {[%clk 0:00:04]} 41. Qf8 {[%clk 0:00:12]}  Qe5 {[%clk 0:00:03]} 42. Bd3+ {[%clk 0:00:12]}  Ne4 {[%clk 0:00:03]} 43. Bxe4+ {[%clk 0:00:13]} 1-0


[Site "https://www.chess.com"]

[Event "Titled Tuesday Blitz February 01 A 2022"]
[White "Shimanov, Aleksandr"]
[Black "Yang, Kaiqi"]
[WhiteFideId "4198603"]
[BlackFideId "8604398"]
[WhiteElo "2849"]
[BlackElo "2597"]
[Result "1-0"]
[Round "04"]
[TimeControl "180+1"]
[Date "2022.02.01"]
[WhiteClock "0:00:23"]
[BlackClock "0:00:03"]

1. b3 {[%clk 0:03:00]}  e5 {[%clk 0:02:58]} 2. Bb2 {[%clk 0:03:01]}  Nc6 {[%clk 0:02:58]} 3. c4 {[%clk 0:03:00]}  Nf6 {[%clk 0:02:58]} 4. Nf3 {[%clk 0:02:54]}  e4 {[%clk 0:02:58]} 5. Nd4 {[%clk 0:02:54]}  Bc5 {[%clk 0:02:59]} 6. Nf5 {[%clk 0:02:54]}  g6 {[%clk 0:02:49]} 7. Ng3 {[%clk 0:02:44]}  O-O {[%clk 0:02:39]} 8. e3 {[%clk 0:02:40]}  Re8 {[%clk 0:02:36]} 9. Nc3 {[%clk 0:02:19]}  h5 {[%clk 0:02:25]} 10. Qb1 {[%clk 0:01:55]}  d5 {[%clk 0:02:03]} 11. cxd5 {[%clk 0:01:51]}  Nb4 {[%clk 0:02:03]} 12. a3 {[%clk 0:01:42]}  Nbxd5 {[%clk 0:01:57]} 13. Nxd5 {[%clk 0:01:42]}  Nxd5 {[%clk 0:01:55]} 14. Nxe4 {[%clk 0:01:40]}  Bf5 {[%clk 0:01:52]} 15. Bd3 {[%clk 0:01:38]}  Nf4 {[%clk 0:00:59]} 16. exf4 {[%clk 0:01:06]}  Bxe4 {[%clk 0:00:36]} 17. Bxe4 {[%clk 0:01:06]}  f5 {[%clk 0:00:32]} 18. O-O {[%clk 0:00:33]}  Rxe4 {[%clk 0:00:32]} 19. Qc2 {[%clk 0:00:33]}  Qd6 {[%clk 0:00:26]} 20. Be5 {[%clk 0:00:29]}  Qd5 {[%clk 0:00:20]} 21. d3 {[%clk 0:00:28]}  Rxe5 {[%clk 0:00:16]} 22. fxe5 {[%clk 0:00:29]}  Bd4 {[%clk 0:00:16]} 23. Rae1 {[%clk 0:00:26]}  c5 {[%clk 0:00:15]} 24. Qc4 {[%clk 0:00:24]}  Qxc4 {[%clk 0:00:15]} 25. dxc4 {[%clk 0:00:25]}  Kf7 {[%clk 0:00:15]} 26. e6+ {[%clk 0:00:25]}  Ke7 {[%clk 0:00:15]} 27. g3 {[%clk 0:00:25]}  Rd8 {[%clk 0:00:15]} 28. Kg2 {[%clk 0:00:25]}  Rd6 {[%clk 0:00:16]} 29. f4 {[%clk 0:00:24]}  Ra6 {[%clk 0:00:15]} 30. a4 {[%clk 0:00:24]}  Rb6 {[%clk 0:00:15]} 31. Rf3 {[%clk 0:00:25]}  Rc6 {[%clk 0:00:12]} 32. h3 {[%clk 0:00:25]}  Rc8 {[%clk 0:00:12]} 33. Rd3 {[%clk 0:00:21]}  a5 {[%clk 0:00:11]} 34. Kf3 {[%clk 0:00:21]}  Rh8 {[%clk 0:00:10]} 35. Re2 {[%clk 0:00:20]}  b6 {[%clk 0:00:10]} 36. Rd1 {[%clk 0:00:20]}  Rh7 {[%clk 0:00:10]} 37. Rh1 {[%clk 0:00:20]}  Rh8 {[%clk 0:00:10]} 38. Kg2 {[%clk 0:00:20]}  Rh7 {[%clk 0:00:11]} 39. g4 {[%clk 0:00:19]}  hxg4 {[%clk 0:00:06]} 40. hxg4 {[%clk 0:00:20]}  Rxh1 {[%clk 0:00:07]} 41. Kxh1 {[%clk 0:00:21]}  fxg4 {[%clk 0:00:07]} 42. Kg2 {[%clk 0:00:22]}  Bf6 {[%clk 0:00:02]} 43. Kg3 {[%clk 0:00:22]}  g5 {[%clk 0:00:02]} 44. f5 {[%clk 0:00:22]}  Bd4 {[%clk 0:00:02]} 45. Kxg4 {[%clk 0:00:22]}  Kf6 {[%clk 0:00:03]} 46. e7 {[%clk 0:00:23]} 1-0


[Site "https://www.chess.com"]

[Event "Titled Tuesday Blitz February 01 A 2022"]
[White "Sychev, Klementy"]
[Black "Lin, Dachey"]
[WhiteFideId "4114060"]
[BlackFideId "2029650"]
[WhiteElo "2564"]
[BlackElo "2667"]
[Result "1/2-1/2"]
[Round "04"]
[TimeControl "180+1"]
[Date "2022.02.01"]
[WhiteClock "0:00:06"]
[BlackClock "0:00:08"]

1. d4 {[%clk 0:02:57]}  g6 {[%clk 0:02:59]} 2. e4 {[%clk 0:02:54]}  Bg7 {[%clk 0:03:00]} 3. Nf3 {[%clk 0:02:53]}  c6 {[%clk 0:03:00]} 4. c3 {[%clk 0:02:50]}  d5 {[%clk 0:03:00]} 5. Nbd2 {[%clk 0:02:50]}  dxe4 {[%clk 0:02:59]} 6. Nxe4 {[%clk 0:02:50]}  Nf6 {[%clk 0:03:00]} 7. Nxf6+ {[%clk 0:02:50]}  Bxf6 {[%clk 0:03:00]} 8. Bh6 {[%clk 0:02:49]}  Qa5 {[%clk 0:03:00]} 9. Qd2 {[%clk 0:02:48]}  Bg4 {[%clk 0:02:58]} 10. Be2 {[%clk 0:02:47]}  Nd7 {[%clk 0:02:59]} 11. O-O {[%clk 0:02:46]}  O-O-O {[%clk 0:02:57]} 12. b4 {[%clk 0:02:42]}  Qh5 {[%clk 0:02:48]} 13. h3 {[%clk 0:02:40]}  Bxh3 {[%clk 0:02:30]} 14. Nh2 {[%clk 0:02:15]}  Qh4 {[%clk 0:02:20]} 15. gxh3 {[%clk 0:02:13]}  g5 {[%clk 0:02:14]} 16. Ng4 {[%clk 0:02:12]}  Rhg8 {[%clk 0:01:53]} 17. Bd3 {[%clk 0:02:06]}  Qxh3 {[%clk 0:01:45]} 18. f3 {[%clk 0:02:06]}  Qg3+ {[%clk 0:01:22]} 19. Qg2 {[%clk 0:02:04]}  Qc7 {[%clk 0:01:22]} 20. a4 {[%clk 0:01:55]}  Kb8 {[%clk 0:01:22]} 21. Rad1 {[%clk 0:01:38]}  e6 {[%clk 0:01:10]} 22. Qh2 {[%clk 0:01:34]}  Be7 {[%clk 0:01:04]} 23. Qxc7+ {[%clk 0:01:00]}  Kxc7 {[%clk 0:01:05]} 24. Kg2 {[%clk 0:01:00]}  f5 {[%clk 0:01:04]} 25. Ne3 {[%clk 0:00:56]}  Rg6 {[%clk 0:01:02]} 26. Rh1 {[%clk 0:00:56]}  Bd6 {[%clk 0:00:57]} 27. b5 {[%clk 0:00:43]}  Bf4 {[%clk 0:00:56]} 28. Kf2 {[%clk 0:00:35]}  Nf6 {[%clk 0:00:43]} 29. Nc4 {[%clk 0:00:24]}  cxb5 {[%clk 0:00:37]} 30. axb5 {[%clk 0:00:24]}  Ng8 {[%clk 0:00:37]} 31. Bf8 {[%clk 0:00:19]}  Rxf8 {[%clk 0:00:34]} 32. Rxh7+ {[%clk 0:00:19]}  Kb8 {[%clk 0:00:35]} 33. Na5 {[%clk 0:00:19]}  Bc7 {[%clk 0:00:34]} 34. b6 {[%clk 0:00:13]}  axb6 {[%clk 0:00:33]} 35. Nc4 {[%clk 0:00:14]}  Nf6 {[%clk 0:00:34]} 36. Rhh1 {[%clk 0:00:08]}  g4 {[%clk 0:00:34]} 37. Ne3 {[%clk 0:00:05]}  Bf4 {[%clk 0:00:31]} 38. Ng2 {[%clk 0:00:04]}  Nd5 {[%clk 0:00:30]} 39. c4 {[%clk 0:00:03]}  gxf3 {[%clk 0:00:26]} 40. Nh4 {[%clk 0:00:01]}  Bg3+ {[%clk 0:00:25]} 41. Kxf3 {[%clk 0:00:02]}  Bxh4 {[%clk 0:00:25]} 42. cxd5 {[%clk 0:00:02]}  Rg3+ {[%clk 0:00:23]} 43. Ke2 {[%clk 0:00:02]}  Rg2+ {[%clk 0:00:21]} 44. Ke3 {[%clk 0:00:02]}  Rg3+ {[%clk 0:00:11]} 45. Ke2 {[%clk 0:00:02]}  Rg2+ {[%clk 0:00:11]} 46. Ke3 {[%clk 0:00:02]}  Bg5+ {[%clk 0:00:08]} 47. Kf3 {[%clk 0:00:02]}  Rg4 {[%clk 0:00:08]} 48. dxe6 {[%clk 0:00:02]}  Rf4+ {[%clk 0:00:08]} 49. Ke2 {[%clk 0:00:03]}  Rxd4 {[%clk 0:00:07]} 50. Rh7 {[%clk 0:00:03]}  Re8 {[%clk 0:00:07]} 51. Kf3 {[%clk 0:00:02]}  Rxe6 {[%clk 0:00:07]} 52. Bc2 {[%clk 0:00:02]}  Rxd1 {[%clk 0:00:07]} 53. Bxd1 {[%clk 0:00:02]}  Re3+ {[%clk 0:00:08]} 54. Kf2 {[%clk 0:00:02]}  Rd3 {[%clk 0:00:06]} 55. Bf3 {[%clk 0:00:03]}  Be3+ {[%clk 0:00:06]} 56. Ke2 {[%clk 0:00:02]}  Rc3 {[%clk 0:00:06]} 57. Rxb7+ {[%clk 0:00:03]}  Kc8 {[%clk 0:00:07]} 58. Rf7 {[%clk 0:00:03]}  f4 {[%clk 0:00:07]} 59. Be4 {[%clk 0:00:04]}  Rc5 {[%clk 0:00:07]} 60. Bd3 {[%clk 0:00:04]}  Rc7 {[%clk 0:00:08]} 61. Rf6 {[%clk 0:00:04]}  Kb7 {[%clk 0:00:08]} 62. Be4+ {[%clk 0:00:04]}  Ka6 {[%clk 0:00:09]} 63. Bd3+ {[%clk 0:00:05]}  Ka5 {[%clk 0:00:09]} 64. Rf5+ {[%clk 0:00:05]}  Ka4 {[%clk 0:00:09]} 65. Rf6 {[%clk 0:00:05]}  Rc3 {[%clk 0:00:09]} 66. Rf7 {[%clk 0:00:05]}  Ra3 {[%clk 0:00:09]} 67. Rb7 {[%clk 0:00:05]}  Kb4 {[%clk 0:00:09]} 68. Rc7 {[%clk 0:00:05]}  Ra2+ {[%clk 0:00:09]} 69. Kf3 {[%clk 0:00:05]}  Rf2+ {[%clk 0:00:10]} 70. Ke4 {[%clk 0:00:06]}  Rd2 {[%clk 0:00:11]} 71. Rc4+ {[%clk 0:00:06]}  Kb3 {[%clk 0:00:11]} 72. Rc6 {[%clk 0:00:06]}  Ka4 {[%clk 0:00:11]} 73. Rc8 {[%clk 0:00:05]}  Rf2 {[%clk 0:00:07]} 74. Rc6 {[%clk 0:00:05]}  Bc5 {[%clk 0:00:07]} 75. Rf6 {[%clk 0:00:04]}  Kb4 {[%clk 0:00:07]} 76. Rxf4 {[%clk 0:00:04]}  Rxf4+ {[%clk 0:00:06]} 77. Kxf4 {[%clk 0:00:05]}  Kc3 {[%clk 0:00:07]} 78. Bb5 {[%clk 0:00:05]}  Kb4 {[%clk 0:00:07]} 79. Be8 {[%clk 0:00:06]}  b5 {[%clk 0:00:08]} 80. Bxb5 {[%clk 0:00:06]} 1/2-1/2


[Site "https://www.chess.com"]

[Event "Titled Tuesday Blitz February 01 A 2022"]
[White "Tari, Aryan"]
[Black "Bacrot, Etienne"]
[WhiteFideId "1510045"]
[BlackFideId "605506"]
[WhiteElo "2944"]
[BlackElo "2840"]
[Result "1/2-1/2"]
[Round "04"]
[TimeControl "180+1"]
[Date "2022.02.01"]
[WhiteClock "0:00:11"]
[BlackClock "0:00:33"]

1. e4 {[%clk 0:03:00]}  c5 {[%clk 0:02:58]} 2. Nc3 {[%clk 0:03:00]}  Nc6 {[%clk 0:02:58]} 3. f4 {[%clk 0:03:00]}  g6 {[%clk 0:02:58]} 4. Nf3 {[%clk 0:03:01]}  Bg7 {[%clk 0:02:58]} 5. Bb5 {[%clk 0:03:02]}  Nd4 {[%clk 0:02:58]} 6. O-O {[%clk 0:03:03]}  Nxb5 {[%clk 0:02:57]} 7. Nxb5 {[%clk 0:03:04]}  a6 {[%clk 0:02:57]} 8. Nc3 {[%clk 0:03:04]}  b5 {[%clk 0:02:57]} 9. d3 {[%clk 0:03:03]}  Bb7 {[%clk 0:02:57]} 10. Qe1 {[%clk 0:03:03]}  d6 {[%clk 0:02:52]} 11. f5 {[%clk 0:03:00]}  Nf6 {[%clk 0:02:52]} 12. Qh4 {[%clk 0:02:57]}  h6 {[%clk 0:02:51]} 13. fxg6 {[%clk 0:02:56]}  fxg6 {[%clk 0:02:51]} 14. e5 {[%clk 0:02:10]}  dxe5 {[%clk 0:02:51]} 15. Nxe5 {[%clk 0:02:05]}  g5 {[%clk 0:02:50]} 16. Qg3 {[%clk 0:01:49]}  Qd4+ {[%clk 0:02:29]} 17. Be3 {[%clk 0:01:44]}  Qd6 {[%clk 0:02:25]} 18. Rae1 {[%clk 0:01:26]}  O-O {[%clk 0:01:50]} 19. Ng6 {[%clk 0:01:20]}  Rf7 {[%clk 0:01:49]} 20. Bf2 {[%clk 0:01:20]}  Nh5 {[%clk 0:01:40]} 21. Nxe7+ {[%clk 0:01:07]}  Qxe7 {[%clk 0:01:40]} 22. Rxe7 {[%clk 0:01:07]}  Nxg3 {[%clk 0:01:41]} 23. Rxf7 {[%clk 0:01:08]}  Kxf7 {[%clk 0:01:38]} 24. hxg3 {[%clk 0:01:00]}  Ke6 {[%clk 0:01:26]} 25. Bxc5 {[%clk 0:00:58]}  Rc8 {[%clk 0:01:26]} 26. Bb4 {[%clk 0:00:40]}  Be5 {[%clk 0:01:16]} 27. Re1 {[%clk 0:00:33]}  Kf5 {[%clk 0:01:03]} 28. g4+ {[%clk 0:00:33]}  Kf6 {[%clk 0:00:58]} 29. Be7+ {[%clk 0:00:31]}  Kxe7 {[%clk 0:00:58]} 30. Rxe5+ {[%clk 0:00:31]}  Kf6 {[%clk 0:00:54]} 31. Re2 {[%clk 0:00:26]}  b4 {[%clk 0:00:54]} 32. Ne4+ {[%clk 0:00:26]}  Bxe4 {[%clk 0:00:53]} 33. Rxe4 {[%clk 0:00:27]}  Rxc2 {[%clk 0:00:53]} 34. Rxb4 {[%clk 0:00:27]}  Rd2 {[%clk 0:00:53]} 35. d4 {[%clk 0:00:24]}  a5 {[%clk 0:00:52]} 36. Rb6+ {[%clk 0:00:24]}  Kf7 {[%clk 0:00:50]} 37. Rb5 {[%clk 0:00:20]}  a4 {[%clk 0:00:51]} 38. Rb4 {[%clk 0:00:20]}  a3 {[%clk 0:00:51]} 39. bxa3 {[%clk 0:00:21]}  Rxa2 {[%clk 0:00:51]} 40. a4 {[%clk 0:00:22]}  Ke6 {[%clk 0:00:52]} 41. Rb6+ {[%clk 0:00:21]}  Kd5 {[%clk 0:00:52]} 42. Rxh6 {[%clk 0:00:18]}  Rxa4 {[%clk 0:00:50]} 43. Rg6 {[%clk 0:00:11]}  Rxd4 {[%clk 0:00:48]} 44. Rxg5+ {[%clk 0:00:04]}  Ke6 {[%clk 0:00:48]} 45. Rf5 {[%clk 0:00:01]}  Rxg4 {[%clk 0:00:47]} 46. Rf3 {[%clk 0:00:02]}  Ke7 {[%clk 0:00:44]} 47. Kh2 {[%clk 0:00:02]}  Rg8 {[%clk 0:00:42]} 48. Kh3 {[%clk 0:00:02]}  Rh8+ {[%clk 0:00:41]} 49. Kg3 {[%clk 0:00:02]}  Rg8+ {[%clk 0:00:42]} 50. Kf2 {[%clk 0:00:03]}  Rh8 {[%clk 0:00:39]} 51. g4 {[%clk 0:00:02]}  Rf8 {[%clk 0:00:32]} 52. Kg3 {[%clk 0:00:02]}  Rxf3+ {[%clk 0:00:31]} 53. Kxf3 {[%clk 0:00:03]}  Kf7 {[%clk 0:00:32]} 54. Kf4 {[%clk 0:00:04]}  Kf6 {[%clk 0:00:32]} 55. g5+ {[%clk 0:00:05]}  Kg6 {[%clk 0:00:32]} 56. Kg4 {[%clk 0:00:06]}  Kg7 {[%clk 0:00:33]} 57. Kf5 {[%clk 0:00:07]}  Kf7 {[%clk 0:00:33]} 58. g6+ {[%clk 0:00:07]}  Kg7 {[%clk 0:00:33]} 59. Kg5 {[%clk 0:00:08]}  Kg8 {[%clk 0:00:32]} 60. Kf6 {[%clk 0:00:09]}  Kf8 {[%clk 0:00:33]} 61. g7+ {[%clk 0:00:10]}  Kg8 {[%clk 0:00:33]} 62. Ke7 {[%clk 0:00:11]}  Kxg7 {[%clk 0:00:33]} 1/2-1/2


[Site "https://www.chess.com"]